[Event "*** Titled Tuesday Blitz"]
[Site "Chess.com"]
[Date "2019.10.01"]
[Round "5"]
[White "Korchmar_Vasiliy"]
[Black "Zhuu96"]
[Result "1-0"]
[WhiteElo "2685"]
[BlackElo "2950"]
[TimeControl "180+2"]
[EndTime "14:08:48 PDT"]
[Termination "Korchmar_Vasiliy won by resignation"]

1. d4 {[%clk 0:03:01.2]} 1... Nf6 {[%clk 0:03:00.5]} 2. Nf3 {[%clk 0:03:02.6]}
2... g6 {[%clk 0:03:01.7]} 3. Bg5 {[%clk 0:03:03.7]} 3... Bg7 {[%clk 0:03:02.7]}
4. Nbd2 {[%clk 0:03:05]} 4... d5 {[%clk 0:03:01.2]} 5. e3 {[%clk 0:03:05.9]}
5... O-O {[%clk 0:03:02.5]} 6. Be2 {[%clk 0:03:06.7]} 6... c5 {[%clk 0:03:02.4]}
7. c3 {[%clk 0:03:07.5]} 7... Nc6 {[%clk 0:03:03.4]} 8. dxc5 {[%clk 0:03:08.4]}
8... a5 {[%clk 0:03:01.3]} 9. a4 {[%clk 0:03:09.3]} 9... Qe8 {[%clk 0:03:01.8]}
10. Nd4 {[%clk 0:03:02.8]} 10... e5 {[%clk 0:03:02.1]} 11. Nb5 {[%clk
0:03:03.6]} 11... Qe7 {[%clk 0:03:01.5]} 12. Nb3 {[%clk 0:03:01.7]} 12... Be6
{[%clk 0:03:02.6]} 13. O-O {[%clk 0:02:58.5]} 13... h6 {[%clk 0:03:03.5]} 14.
Bxf6 {[%clk 0:02:59.7]} 14... Bxf6 {[%clk 0:03:04.7]} 15. Bg4 {[%clk 0:02:45.2]}
15... Rfd8 {[%clk 0:02:55.8]} 16. Bxe6 {[%clk 0:02:44.9]} 16... fxe6 {[%clk
0:02:56.7]} 17. Qg4 {[%clk 0:02:45.1]} 17... Kh7 {[%clk 0:02:57.4]} 18. Rad1
{[%clk 0:02:43.7]} 18... e4 {[%clk 0:02:58.8]} 19. N3d4 {[%clk 0:02:03.3]} 19...
e5 {[%clk 0:02:57.2]} 20. Ne6 {[%clk 0:01:46.8]} 20... h5 {[%clk 0:02:56.9]} 21.
Qh3 {[%clk 0:01:46.9]} 21... Rd7 {[%clk 0:02:58]} 22. Nbc7 {[%clk 0:01:43]}
22... Rxc7 {[%clk 0:02:56.5]} 23. Nxc7 {[%clk 0:01:44.9]} 23... Qxc7 {[%clk
0:02:57.6]} 24. Rxd5 {[%clk 0:01:46.5]} 24... Ne7 {[%clk 0:02:56.1]} 25. Rd7
{[%clk 0:01:45.1]} 25... Qxc5 {[%clk 0:02:56.9]} 26. Qe6 {[%clk 0:01:45.8]}
26... Kg7 {[%clk 0:02:56.9]} 27. Rfd1 {[%clk 0:01:40.5]} 27... Ra6 {[%clk
0:02:57.4]} 28. R1d6 {[%clk 0:01:29.4]} 28... Rxd6 {[%clk 0:02:58.3]} 29. Rxd6
{[%clk 0:01:31.3]} 29... Ng8 {[%clk 0:02:59.2]} 30. Rd7+ {[%clk 0:01:24.5]}
30... Be7 {[%clk 0:02:59.4]} 31. Rxb7 {[%clk 0:01:18.3]} 31... h4 {[%clk
0:03:00.6]} 32. h3 {[%clk 0:01:18.3]} 32... Kh7 {[%clk 0:02:54.6]} 33. b4 {[%clk
0:00:58.4]} 33... axb4 {[%clk 0:02:54.1]} 34. cxb4 {[%clk 0:01:00.3]} 34... Qc1+
{[%clk 0:02:54.6]} 35. Kh2 {[%clk 0:01:01.8]} 35... Qf1 {[%clk 0:02:55.5]} 36.
Rxe7+ {[%clk 0:01:02]} 36... Nxe7 {[%clk 0:02:56.2]} 37. Qxe7+ {[%clk
0:01:03.9]} 37... Kg8 {[%clk 0:02:57.7]} 38. Qe8+ {[%clk 0:01:03.1]} 38... Kh7
{[%clk 0:02:58]} 39. Qe7+ {[%clk 0:01:00.9]} 39... Kg8 {[%clk 0:02:59.1]} 40.
Qxh4 {[%clk 0:01:02.1]} 40... Qc4 {[%clk 0:03:00.2]} 1-0

[Event "*** Titled Tuesday Blitz"]
[Site "Chess.com"]
[Date "2019.10.01"]
[Round "5"]
[White "albi1999"]
[Black "benhal"]
[Result "1-0"]
[WhiteElo "2528"]
[BlackElo "2316"]
[TimeControl "180+2"]
[EndTime "14:08:50 PDT"]
[Termination "albi1999 won by resignation"]

1. d4 {[%clk 0:02:52.5]} 1... d5 {[%clk 0:02:59]} 2. c4 {[%clk 0:02:53]} 2...
dxc4 {[%clk 0:02:58.7]} 3. Nf3 {[%clk 0:02:53.8]} 3... Nf6 {[%clk 0:02:59.2]} 4.
e3 {[%clk 0:02:50.6]} 4... b5 {[%clk 0:03:00.1]} 5. a4 {[%clk 0:02:49.2]} 5...
b4 {[%clk 0:03:01]} 6. Bxc4 {[%clk 0:02:49.8]} 6... e6 {[%clk 0:03:02.1]} 7. O-O
{[%clk 0:02:51.2]} 7... Bb7 {[%clk 0:03:03.3]} 8. b3 {[%clk 0:02:52.8]} 8... Be7
{[%clk 0:03:04.4]} 9. Bb2 {[%clk 0:02:54.4]} 9... O-O {[%clk 0:03:05.9]} 10.
Nbd2 {[%clk 0:02:55.1]} 10... c5 {[%clk 0:03:06]} 11. Qe2 {[%clk 0:02:56]} 11...
Nbd7 {[%clk 0:03:07.1]} 12. Rfd1 {[%clk 0:02:55.9]} 12... cxd4 {[%clk
0:03:08.6]} 13. Nxd4 {[%clk 0:02:57.8]} 13... a6 {[%clk 0:03:07.5]} 14. Rac1
{[%clk 0:02:55.9]} 14... Qa5 {[%clk 0:03:08.3]} 15. Bd3 {[%clk 0:02:52.1]} 15...
Nc5 {[%clk 0:03:08.1]} 16. Nc4 {[%clk 0:02:50.8]} 16... Qc7 {[%clk 0:03:08.5]}
17. Bc2 {[%clk 0:02:47.2]} 17... Rac8 {[%clk 0:03:07.1]} 18. f3 {[%clk
0:02:43.4]} 18... Kh8 {[%clk 0:02:56.9]} 19. Qe1 {[%clk 0:02:42.9]} 19... Nxa4
{[%clk 0:02:53.2]} 20. bxa4 {[%clk 0:02:36.5]} 20... Qxc4 {[%clk 0:02:53.5]} 21.
Be4 {[%clk 0:02:23.5]} 21... Qa2 {[%clk 0:02:48.1]} 22. Bxb7 {[%clk 0:02:23.6]}
22... Rb8 {[%clk 0:02:19.4]} 23. Bxa6 {[%clk 0:02:04.6]} 23... Qxb2 {[%clk
0:02:16.6]} 24. Rc2 {[%clk 0:02:04.8]} 24... Qxc2 {[%clk 0:01:53.4]} 25. Nxc2
{[%clk 0:02:03.7]} 25... b3 {[%clk 0:01:55.3]} 26. Nd4 {[%clk 0:02:03.1]} 26...
Nd5 {[%clk 0:01:52.7]} 27. Bc4 {[%clk 0:01:58.2]} 27... b2 {[%clk 0:01:49.2]}
28. Bxd5 {[%clk 0:01:58.3]} 28... exd5 {[%clk 0:01:46.4]} 29. Nc6 {[%clk
0:01:59.3]} 29... Rb7 {[%clk 0:01:46.6]} 30. Nxe7 {[%clk 0:01:57.9]} 30... Rfb8
{[%clk 0:01:44.4]} 31. Rb1 {[%clk 0:01:56.6]} 31... Rxe7 {[%clk 0:01:44.4]} 32.
Qd2 {[%clk 0:01:55.4]} 32... Reb7 {[%clk 0:01:41.6]} 33. Qxd5 {[%clk 0:01:55.1]}
33... h6 {[%clk 0:01:39.2]} 34. Qd2 {[%clk 0:01:54.3]} 34... Rb3 {[%clk
0:01:32.8]} 35. a5 {[%clk 0:01:52.3]} 1-0

[Event "*** Titled Tuesday Blitz"]
[Site "Chess.com"]
[Date "2019.10.01"]
[Round "5"]
[White "aranibos"]
[Black "Supernotar"]
[Result "0-1"]
[WhiteElo "2166"]
[BlackElo "2709"]
[TimeControl "180+2"]
[EndTime "14:08:52 PDT"]
[Termination "Supernotar won by resignation"]

1. d4 {[%clk 0:03:00.8]} 1... d5 {[%clk 0:03:00.4]} 2. Nf3 {[%clk 0:03:00.9]}
2... Nf6 {[%clk 0:03:00.1]} 3. Bg5 {[%clk 0:03:01.3]} 3... Nbd7 {[%clk
0:03:00.2]} 4. e3 {[%clk 0:03:02.1]} 4... g6 {[%clk 0:03:00.6]} 5. Nbd2 {[%clk
0:03:01.9]} 5... Bg7 {[%clk 0:03:01.6]} 6. Bd3 {[%clk 0:03:02.6]} 6... O-O
{[%clk 0:03:02.5]} 7. c3 {[%clk 0:03:03.2]} 7... c5 {[%clk 0:03:03.3]} 8. h4
{[%clk 0:03:03.5]} 8... h5 {[%clk 0:03:02.4]} 9. Ne5 {[%clk 0:03:00.4]} 9...
Nxe5 {[%clk 0:02:58.7]} 10. dxe5 {[%clk 0:02:59.6]} 10... Ng4 {[%clk 0:02:59.7]}
11. Nf3 {[%clk 0:02:34.6]} 11... Nxe5 {[%clk 0:02:56.1]} 12. Nxe5 {[%clk
0:02:34.7]} 12... Bxe5 {[%clk 0:02:57]} 13. f4 {[%clk 0:02:30.5]} 13... Bg4
{[%clk 0:02:56.3]} 14. Be2 {[%clk 0:02:25.9]} 14... Bxe2 {[%clk 0:02:56.3]} 15.
Qxe2 {[%clk 0:02:25.8]} 15... Bg7 {[%clk 0:02:57]} 16. f5 {[%clk 0:02:24.1]}
16... Qd6 {[%clk 0:02:48.3]} 17. O-O-O {[%clk 0:02:17.6]} 17... Rac8 {[%clk
0:02:41]} 18. Bf4 {[%clk 0:02:14.8]} 18... Be5 {[%clk 0:02:40.6]} 19. g4 {[%clk
0:02:12.9]} 19... Bxf4 {[%clk 0:02:39.9]} 20. exf4 {[%clk 0:02:13.5]} 20...
Qxf4+ {[%clk 0:02:40.6]} 21. Kb1 {[%clk 0:02:10]} 21... Qxg4 {[%clk 0:02:38.6]}
22. Qxg4 {[%clk 0:02:05.4]} 22... hxg4 {[%clk 0:02:39.1]} 23. Rxd5 {[%clk
0:02:05]} 23... Rfd8 {[%clk 0:02:32.1]} 24. Re5 {[%clk 0:02:04.7]} 24... Rd2
{[%clk 0:02:13.7]} 25. fxg6 {[%clk 0:02:03.1]} 25... fxg6 {[%clk 0:02:10.7]} 26.
Rxe7 {[%clk 0:01:54.2]} 26... g3 {[%clk 0:02:10.8]} 27. Rg1 {[%clk 0:01:24.4]}
27... g2 {[%clk 0:02:09.5]} 28. Re6 {[%clk 0:01:19.1]} 28... Kf7 {[%clk
0:02:06.7]} 29. Ree1 {[%clk 0:01:05.1]} 29... Rc6 {[%clk 0:02:00.9]} 30. a4
{[%clk 0:01:04]} 30... Rb6 {[%clk 0:01:59.1]} 0-1

[Event "*** Titled Tuesday Blitz"]
[Site "Chess.com"]
[Date "2019.10.01"]
[Round "5"]
[White "cool4chess"]
[Black "boasovietica"]
[Result "1-0"]
[WhiteElo "2594"]
[BlackElo "2418"]
[TimeControl "180+2"]
[EndTime "14:09:47 PDT"]
[Termination "cool4chess won by resignation"]

1. e4 {[%clk 0:03:01.9]} 1... e5 {[%clk 0:03:00.5]} 2. Nf3 {[%clk 0:03:03]} 2...
Nc6 {[%clk 0:03:01.4]} 3. Bb5 {[%clk 0:03:04.2]} 3... a6 {[%clk 0:03:01.7]} 4.
Ba4 {[%clk 0:03:05.8]} 4... Nf6 {[%clk 0:03:02.3]} 5. d4 {[%clk 0:03:07.4]} 5...
exd4 {[%clk 0:02:43.5]} 6. O-O {[%clk 0:03:05.4]} 6... d6 {[%clk 0:02:38.8]} 7.
Nxd4 {[%clk 0:02:12]} 7... Bd7 {[%clk 0:02:36.3]} 8. Nxc6 {[%clk 0:02:13.5]}
8... Bxc6 {[%clk 0:02:29.4]} 9. Bxc6+ {[%clk 0:02:14.5]} 9... bxc6 {[%clk
0:02:30]} 10. c4 {[%clk 0:02:13.3]} 10... Be7 {[%clk 0:02:21.7]} 11. Nc3 {[%clk
0:02:14.4]} 11... O-O {[%clk 0:02:20.7]} 12. b3 {[%clk 0:02:15.6]} 12... Re8
{[%clk 0:02:19.8]} 13. Bg5 {[%clk 0:02:12.1]} 13... Nxe4 {[%clk 0:02:05.2]} 14.
Nxe4 {[%clk 0:02:08.5]} 14... Bxg5 {[%clk 0:02:05.9]} 15. Qf3 {[%clk 0:02:10.3]}
15... Bf6 {[%clk 0:02:02.4]} 16. Rad1 {[%clk 0:02:10.8]} 16... Be5 {[%clk
0:01:58.9]} 17. Qg4 {[%clk 0:01:59.6]} 17... f5 {[%clk 0:01:47.6]} 18. Qxf5
{[%clk 0:01:58]} 18... Bxh2+ {[%clk 0:01:48.6]} 19. Kxh2 {[%clk 0:01:56.4]}
19... Qh4+ {[%clk 0:01:49.9]} 20. Kg1 {[%clk 0:01:57.9]} 20... Qxe4 {[%clk
0:01:50]} 21. Qd7 {[%clk 0:01:58.9]} 21... Re7 {[%clk 0:01:46.3]} 22. Qh3 {[%clk
0:01:56.2]} 22... Rae8 {[%clk 0:01:45.5]} 23. Rfe1 {[%clk 0:01:50.6]} 23...
Qxe1+ {[%clk 0:01:44.9]} 24. Rxe1 {[%clk 0:01:52.5]} 24... Rxe1+ {[%clk
0:01:45.9]} 25. Kh2 {[%clk 0:01:54.4]} 25... R1e6 {[%clk 0:01:43.4]} 26. Qf3
{[%clk 0:01:51.5]} 26... Rh6+ {[%clk 0:01:38.8]} 27. Kg3 {[%clk 0:01:52.7]}
27... Rg6+ {[%clk 0:01:36.4]} 28. Kh2 {[%clk 0:01:53.9]} 28... c5 {[%clk
0:01:31.7]} 29. Qc6 {[%clk 0:01:50.5]} 29... Rf8 {[%clk 0:01:31.3]} 30. f3
{[%clk 0:01:49]} 30... h6 {[%clk 0:01:19.9]} 31. Qxa6 {[%clk 0:01:46.7]} 31...
Re8 {[%clk 0:01:20.2]} 32. g4 {[%clk 0:01:40.2]} 32... Rf6 {[%clk 0:01:18.7]}
33. Kg3 {[%clk 0:01:36.6]} 33... Re3 {[%clk 0:01:11.3]} 34. Qa8+ {[%clk
0:01:34.5]} 34... Kh7 {[%clk 0:01:09.6]} 35. Qb7 {[%clk 0:01:32.6]} 35... Rd3
{[%clk 0:01:06]} 36. Qe4+ {[%clk 0:01:26.1]} 1-0

[Event "*** Titled Tuesday Blitz"]
[Site "Chess.com"]
[Date "2019.10.01"]
[Round "5"]
[White "WiktoriaPOL"]
[Black "2nd_life"]
[Result "1-0"]
[WhiteElo "2310"]
[BlackElo "2392"]
[TimeControl "180+2"]
[EndTime "14:10:01 PDT"]
[Termination "WiktoriaPOL won by resignation"]

1. c4 {[%clk 0:03:01.9]} 1... e5 {[%clk 0:03:00.5]} 2. Nc3 {[%clk 0:03:02]} 2...
Bb4 {[%clk 0:03:01.2]} 3. Nd5 {[%clk 0:03:01.9]} 3... a5 {[%clk 0:03:01.6]} 4.
a3 {[%clk 0:02:59]} 4... Be7 {[%clk 0:03:01.8]} 5. d3 {[%clk 0:02:57.3]} 5...
Nf6 {[%clk 0:02:53.6]} 6. Nxe7 {[%clk 0:02:55.2]} 6... Qxe7 {[%clk 0:02:54.5]}
7. Nf3 {[%clk 0:02:55.6]} 7... b6 {[%clk 0:02:30.5]} 8. g3 {[%clk 0:02:54.1]}
8... Bb7 {[%clk 0:02:30.9]} 9. Bg2 {[%clk 0:02:53.5]} 9... O-O {[%clk
0:02:28.8]} 10. O-O {[%clk 0:02:53.2]} 10... d6 {[%clk 0:02:26.2]} 11. e4 {[%clk
0:02:53.3]} 11... a4 {[%clk 0:02:24.2]} 12. Nd2 {[%clk 0:02:51]} 12... Nc6
{[%clk 0:02:21.6]} 13. f4 {[%clk 0:02:51]} 13... Nd4 {[%clk 0:02:20.9]} 14. f5
{[%clk 0:02:44.3]} 14... Nd7 {[%clk 0:02:20.5]} 15. g4 {[%clk 0:02:41.4]} 15...
f6 {[%clk 0:02:17.3]} 16. h4 {[%clk 0:02:36.3]} 16... Nc5 {[%clk 0:02:17.6]} 17.
Nf3 {[%clk 0:02:24.2]} 17... Nxf3+ {[%clk 0:02:15.2]} 18. Qxf3 {[%clk
0:02:20.5]} 18... Nb3 {[%clk 0:02:15.7]} 19. Rb1 {[%clk 0:02:19.1]} 19... b5
{[%clk 0:02:14.7]} 20. cxb5 {[%clk 0:02:14.9]} 20... Ra5 {[%clk 0:01:37.4]} 21.
g5 {[%clk 0:02:11.4]} 21... Rxb5 {[%clk 0:01:27.3]} 22. gxf6 {[%clk 0:02:10.1]}
22... gxf6 {[%clk 0:01:00.6]} 23. Bh6 {[%clk 0:02:07.1]} 23... Rf7 {[%clk
0:00:53.9]} 24. Kh2 {[%clk 0:02:04.9]} 24... Kh8 {[%clk 0:00:53.9]} 25. Rg1
{[%clk 0:02:04.4]} 25... Ba6 {[%clk 0:00:53.6]} 26. Bh3 {[%clk 0:02:02.8]} 26...
Rb8 {[%clk 0:00:50.8]} 27. Rg3 {[%clk 0:01:53.1]} 27... Nd4 {[%clk 0:00:50.1]}
28. Qg2 {[%clk 0:01:48.4]} 28... d5 {[%clk 0:00:26.3]} 29. Rg1 {[%clk
0:01:46.7]} 29... Qe8 {[%clk 0:00:19.4]} 30. Bg7+ {[%clk 0:01:39.2]} 30... Rxg7
{[%clk 0:00:20.3]} 31. Rxg7 {[%clk 0:01:39.5]} 31... Qf8 {[%clk 0:00:21.5]} 32.
Rxh7+ {[%clk 0:01:36]} 1-0

[Event "*** Titled Tuesday Blitz"]
[Site "Chess.com"]
[Date "2019.10.01"]
[Round "5"]
[White "CzechmVIII"]
[Black "PowerThinking2650"]
[Result "1-0"]
[WhiteElo "2109"]
[BlackElo "2293"]
[TimeControl "180+2"]
[EndTime "14:10:04 PDT"]
[Termination "CzechmVIII won by resignation"]

1. e4 {[%clk 0:03:01.9]} 1... e5 {[%clk 0:03:00]} 2. Nf3 {[%clk 0:03:02.7]} 2...
Nc6 {[%clk 0:02:53.3]} 3. Bb5 {[%clk 0:03:03.2]} 3... a6 {[%clk 0:02:53.9]} 4.
Ba4 {[%clk 0:03:04]} 4... Nf6 {[%clk 0:02:54.3]} 5. O-O {[%clk 0:03:05]} 5...
Be7 {[%clk 0:02:54.9]} 6. Re1 {[%clk 0:03:06]} 6... b5 {[%clk 0:02:54.9]} 7. Bb3
{[%clk 0:03:07.1]} 7... d6 {[%clk 0:02:56.4]} 8. c3 {[%clk 0:03:07.2]} 8... O-O
{[%clk 0:02:56.8]} 9. h3 {[%clk 0:03:08.3]} 9... Bb7 {[%clk 0:02:57.1]} 10. d4
{[%clk 0:03:05.6]} 10... Re8 {[%clk 0:02:57.6]} 11. Nbd2 {[%clk 0:03:06.5]}
11... Bf8 {[%clk 0:02:58]} 12. a3 {[%clk 0:02:55.6]} 12... h6 {[%clk 0:02:58.5]}
13. Bc2 {[%clk 0:02:53.6]} 13... Nb8 {[%clk 0:02:59.1]} 14. b4 {[%clk
0:02:53.2]} 14... Nbd7 {[%clk 0:02:59.5]} 15. Bb2 {[%clk 0:02:52.6]} 15... c6
{[%clk 0:02:59.7]} 16. Qb1 {[%clk 0:02:40.1]} 16... Nh5 {[%clk 0:02:56.6]} 17.
c4 {[%clk 0:02:35.7]} 17... Nf4 {[%clk 0:02:53.2]} 18. dxe5 {[%clk 0:02:18.1]}
18... Nxe5 {[%clk 0:02:48]} 19. Nxe5 {[%clk 0:02:19.1]} 19... dxe5 {[%clk
0:02:49.5]} 20. Nf3 {[%clk 0:02:14.4]} 20... Qf6 {[%clk 0:02:50.1]} 21. Bxe5
{[%clk 0:01:17]} 21... Rxe5 {[%clk 0:02:45.3]} 22. Nxe5 {[%clk 0:01:18]} 22...
Qxe5 {[%clk 0:02:46.4]} 23. c5 {[%clk 0:01:11.7]} 23... Qg5 {[%clk 0:02:32.7]}
24. g3 {[%clk 0:00:56.9]} 24... Nxh3+ {[%clk 0:02:33.4]} 25. Kf1 {[%clk
0:00:58.1]} 25... a5 {[%clk 0:02:21.8]} 26. Qb3 {[%clk 0:00:39.7]} 26... axb4
{[%clk 0:02:14.3]} 27. axb4 {[%clk 0:00:40.9]} 27... Qf6 {[%clk 0:02:15.3]} 28.
Kg2 {[%clk 0:00:21.5]} 28... Rxa1 {[%clk 0:02:09.1]} 29. Rxa1 {[%clk 0:00:22.5]}
29... Qxa1 {[%clk 0:02:10]} 30. Kxh3 {[%clk 0:00:22.7]} 30... Qh1+ {[%clk
0:02:08.2]} 31. Kg4 {[%clk 0:00:23.7]} 31... Qxe4+ {[%clk 0:02:08.7]} 32. Bxe4
{[%clk 0:00:22.4]} 32... g6 {[%clk 0:02:03.7]} 33. Bxg6 {[%clk 0:00:19.7]} 33...
Bc8+ {[%clk 0:02:04.2]} 34. Bf5 {[%clk 0:00:16.6]} 34... Bxf5+ {[%clk
0:01:58.4]} 35. Kxf5 {[%clk 0:00:17.7]} 35... Bg7 {[%clk 0:02:00.3]} 36. Qe3
{[%clk 0:00:16.3]} 36... Bf8 {[%clk 0:01:59]} 37. Qe8 {[%clk 0:00:16.9]} 37...
Kg7 {[%clk 0:02:00.2]} 38. Qxc6 {[%clk 0:00:17.6]} 38... Be7 {[%clk 0:02:01.7]}
39. Qxb5 {[%clk 0:00:18.2]} 1-0

[Event "*** Titled Tuesday Blitz"]
[Site "Chess.com"]
[Date "2019.10.01"]
[Round "5"]
[White "pedroholly22"]
[Black "Sashadav97"]
[Result "1/2-1/2"]
[WhiteElo "2338"]
[BlackElo "2520"]
[TimeControl "180+2"]
[EndTime "14:10:11 PDT"]
[Termination "Game drawn by agreement"]

1. e4 {[%clk 0:03:01.9]} 1... c5 {[%clk 0:02:58.8]} 2. Nf3 {[%clk 0:03:02.5]}
2... Nc6 {[%clk 0:02:59.9]} 3. d4 {[%clk 0:03:04.4]} 3... cxd4 {[%clk
0:03:01.8]} 4. Nxd4 {[%clk 0:03:05.7]} 4... Nf6 {[%clk 0:03:03.5]} 5. Nc3 {[%clk
0:03:06.4]} 5... d6 {[%clk 0:03:05.1]} 6. Bg5 {[%clk 0:03:06.9]} 6... e6 {[%clk
0:03:06.7]} 7. Qd2 {[%clk 0:03:07.8]} 7... a6 {[%clk 0:03:08]} 8. O-O-O {[%clk
0:03:07.7]} 8... Bd7 {[%clk 0:03:09.5]} 9. f4 {[%clk 0:03:07.7]} 9... Be7 {[%clk
0:03:09.8]} 10. f5 {[%clk 0:02:58.2]} 10... Ne5 {[%clk 0:02:47.7]} 11. Nf3
{[%clk 0:02:46]} 11... Qc7 {[%clk 0:02:43.9]} 12. Be2 {[%clk 0:02:38.6]} 12...
Rd8 {[%clk 0:02:37.3]} 13. Nxe5 {[%clk 0:02:37.9]} 13... dxe5 {[%clk 0:02:37.3]}
14. Qe3 {[%clk 0:02:34.9]} 14... O-O {[%clk 0:02:37.7]} 15. g4 {[%clk
0:02:33.8]} 15... b5 {[%clk 0:02:28.4]} 16. Bxf6 {[%clk 0:02:31.8]} 16... gxf6
{[%clk 0:02:25.7]} 17. g5 {[%clk 0:02:33.7]} 17... fxg5 {[%clk 0:02:26.4]} 18.
h4 {[%clk 0:02:32.5]} 18... f6 {[%clk 0:02:25.7]} 19. hxg5 {[%clk 0:02:25.4]}
19... fxg5 {[%clk 0:02:27.6]} 20. Qh3 {[%clk 0:02:26.6]} 20... Rf7 {[%clk
0:02:19.8]} 21. fxe6 {[%clk 0:02:27.4]} 21... Bxe6 {[%clk 0:02:10.9]} 22. Qxe6
{[%clk 0:02:27.1]} 22... Rxd1+ {[%clk 0:02:05.9]} 23. Bxd1 {[%clk 0:02:26]}
23... Qd6 {[%clk 0:02:01.1]} 24. Bg4 {[%clk 0:02:11.5]} 24... Kf8 {[%clk
0:01:46.9]} 25. Nd5 {[%clk 0:02:04.6]} 25... Qxe6 {[%clk 0:01:40.6]} 26. Bxe6
{[%clk 0:02:04.9]} 26... Rg7 {[%clk 0:01:42.1]} 27. Bf5 {[%clk 0:02:04.2]} 27...
g4 {[%clk 0:01:40.1]} 28. Kd1 {[%clk 0:01:58.1]} 28... Bc5 {[%clk 0:01:29.6]}
29. Nf6 {[%clk 0:01:41.2]} 29... g3 {[%clk 0:01:25.2]} 30. Nd7+ {[%clk
0:01:15.6]} 30... Rxd7+ {[%clk 0:01:23.6]} 31. Bxd7 {[%clk 0:01:16.8]} 31... g2
{[%clk 0:01:23.3]} 32. Re1 {[%clk 0:01:16.7]} 32... Bf2 {[%clk 0:01:13.7]} 33.
Bh3 {[%clk 0:01:17.5]} 33... Bxe1 {[%clk 0:01:14.2]} 34. Bxg2 {[%clk 0:01:18.6]}
34... Bf2 {[%clk 0:01:11.2]} 35. Bf1 {[%clk 0:01:20.1]} 35... Ke7 {[%clk
0:01:11.6]} 36. a4 {[%clk 0:01:19.9]} 36... bxa4 {[%clk 0:01:09.4]} 37. Bxa6
{[%clk 0:01:20.7]} 37... Bc5 {[%clk 0:01:09.7]} 38. Bb5 {[%clk 0:01:21.5]} 38...
a3 {[%clk 0:01:10.7]} 39. bxa3 {[%clk 0:01:21.6]} 39... Bxa3 {[%clk 0:01:12.6]}
40. Ke2 {[%clk 0:01:22.7]} 40... Kf6 {[%clk 0:01:12.9]} 41. Kf3 {[%clk
0:01:23.8]} 41... Kg5 {[%clk 0:01:14]} 42. Kg2 {[%clk 0:01:25]} 42... Kf4 {[%clk
0:01:14.3]} 43. Bc6 {[%clk 0:01:26.9]} 1/2-1/2

[Event "*** Titled Tuesday Blitz"]
[Site "Chess.com"]
[Date "2019.10.01"]
[Round "5"]
[White "dragos420"]
[Black "ChessLover0108"]
[Result "0-1"]
[WhiteElo "2367"]
[BlackElo "2734"]
[TimeControl "180+2"]
[EndTime "14:10:12 PDT"]
[Termination "ChessLover0108 won by resignation"]

1. e4 {[%clk 0:03:01.9]} 1... Nf6 {[%clk 0:02:59.6]} 2. e5 {[%clk 0:03:03]} 2...
Nd5 {[%clk 0:02:59]} 3. d4 {[%clk 0:03:04.2]} 3... d6 {[%clk 0:03:00.2]} 4. Nf3
{[%clk 0:03:05.2]} 4... dxe5 {[%clk 0:02:58.5]} 5. Nxe5 {[%clk 0:03:07.1]} 5...
c6 {[%clk 0:02:59.2]} 6. Nf3 {[%clk 0:03:06.7]} 6... g6 {[%clk 0:02:59.9]} 7. c4
{[%clk 0:03:07]} 7... Nf6 {[%clk 0:02:58.9]} 8. Nc3 {[%clk 0:03:07.9]} 8... Bg7
{[%clk 0:03:00.4]} 9. h3 {[%clk 0:03:06.9]} 9... O-O {[%clk 0:03:00.2]} 10. Bd3
{[%clk 0:03:06.1]} 10... b6 {[%clk 0:03:01.4]} 11. Be3 {[%clk 0:03:06.8]} 11...
Bb7 {[%clk 0:03:02.5]} 12. O-O {[%clk 0:03:07.7]} 12... Nbd7 {[%clk 0:02:59.3]}
13. Qd2 {[%clk 0:03:04.1]} 13... Re8 {[%clk 0:02:51.8]} 14. Bf4 {[%clk
0:03:00.3]} 14... e6 {[%clk 0:02:45.8]} 15. Qe2 {[%clk 0:02:27.8]} 15... c5
{[%clk 0:02:45.4]} 16. Nb5 {[%clk 0:02:28.6]} 16... cxd4 {[%clk 0:01:24.8]} 17.
Nc7 {[%clk 0:01:35.3]} 17... e5 {[%clk 0:01:01.5]} 18. Nxe8 {[%clk 0:01:30.8]}
18... Qxe8 {[%clk 0:01:03.4]} 19. Nxe5 {[%clk 0:01:22.9]} 19... Nh5 {[%clk
0:01:04.5]} 20. Nxd7 {[%clk 0:01:15]} 20... Nxf4 {[%clk 0:01:04.5]} 21. Qxe8+
{[%clk 0:01:08]} 21... Rxe8 {[%clk 0:01:06.4]} 22. Bc2 {[%clk 0:00:59.1]} 22...
Bc6 {[%clk 0:01:06.7]} 23. g3 {[%clk 0:00:41.3]} 23... Nxh3+ {[%clk 0:01:00.1]}
24. Kh2 {[%clk 0:00:42.2]} 24... Ng5 {[%clk 0:01:02]} 0-1

[Event "*** Titled Tuesday Blitz"]
[Site "Chess.com"]
[Date "2019.10.01"]
[Round "5"]
[White "XDPS"]
[Black "chessS1r"]
[Result "1-0"]
[WhiteElo "2775"]
[BlackElo "2472"]
[TimeControl "180+2"]
[EndTime "14:10:27 PDT"]
[Termination "XDPS won by resignation"]

1. d4 {[%clk 0:03:01.9]} 1... d5 {[%clk 0:02:50]} 2. c4 {[%clk 0:03:00.2]} 2...
e6 {[%clk 0:02:48.8]} 3. Nc3 {[%clk 0:02:59.6]} 3... a6 {[%clk 0:02:50.3]} 4.
cxd5 {[%clk 0:02:54.5]} 4... exd5 {[%clk 0:02:52.2]} 5. Qb3 {[%clk 0:02:55.3]}
5... c6 {[%clk 0:02:46.3]} 6. e4 {[%clk 0:02:55.3]} 6... dxe4 {[%clk 0:02:46.5]}
7. Bc4 {[%clk 0:02:55.9]} 7... Qe7 {[%clk 0:02:41.6]} 8. a4 {[%clk 0:02:56.2]}
8... h6 {[%clk 0:02:34.1]} 9. Nge2 {[%clk 0:02:52.5]} 9... Nf6 {[%clk
0:02:34.9]} 10. O-O {[%clk 0:02:52.8]} 10... Be6 {[%clk 0:02:13.3]} 11. Bxe6
{[%clk 0:02:52.1]} 11... fxe6 {[%clk 0:02:14.6]} 12. Ng3 {[%clk 0:02:53.2]}
12... Nbd7 {[%clk 0:02:09.6]} 13. Qxb7 {[%clk 0:02:52]} 13... Rb8 {[%clk
0:02:10.8]} 14. Qxc6 {[%clk 0:02:52.7]} 14... Qd6 {[%clk 0:02:04]} 15. Qc4
{[%clk 0:02:53.6]} 15... Be7 {[%clk 0:01:58.3]} 16. Ncxe4 {[%clk 0:02:52.7]}
16... Nxe4 {[%clk 0:01:57.9]} 17. Nxe4 {[%clk 0:02:54.6]} 17... Qd5 {[%clk
0:01:59.2]} 18. Qxd5 {[%clk 0:02:55.3]} 18... exd5 {[%clk 0:02:01.1]} 19. Nc3
{[%clk 0:02:56.8]} 19... Nf6 {[%clk 0:01:50.9]} 20. Re1 {[%clk 0:02:54.9]} 20...
Kf7 {[%clk 0:01:51.6]} 21. Re2 {[%clk 0:02:43.2]} 21... Rb4 {[%clk 0:01:35.1]}
22. Be3 {[%clk 0:02:18.4]} 22... Rhb8 {[%clk 0:01:32.6]} 23. Ra2 {[%clk
0:02:15.2]} 23... g5 {[%clk 0:01:22.7]} 24. f3 {[%clk 0:02:15.2]} 24... Bd6
{[%clk 0:01:19.9]} 25. g4 {[%clk 0:02:11.8]} 25... Re8 {[%clk 0:01:05.3]} 26.
Kg2 {[%clk 0:02:07.8]} 26... Reb8 {[%clk 0:00:53.3]} 27. Bf2 {[%clk 0:02:06.4]}
27... Bf4 {[%clk 0:00:45.9]} 28. a5 {[%clk 0:01:56.7]} 28... Bc1 {[%clk
0:00:45.4]} 29. Na4 {[%clk 0:01:56.4]} 29... Nd7 {[%clk 0:00:37.2]} 30. Rc2
{[%clk 0:01:55.5]} 30... Rc4 {[%clk 0:00:35]} 31. Rxc4 {[%clk 0:01:42.9]} 31...
dxc4 {[%clk 0:00:36.9]} 32. d5 {[%clk 0:01:44.4]} 32... Rb5 {[%clk 0:00:30.5]}
33. Nb6 {[%clk 0:01:45.6]} 33... Bxb2 {[%clk 0:00:17.9]} 34. Nxd7 {[%clk
0:01:42.4]} 34... c3 {[%clk 0:00:19.2]} 35. Ne5+ {[%clk 0:01:35]} 35... Kf6
{[%clk 0:00:15.5]} 36. Nd3 {[%clk 0:01:36]} 36... c2 {[%clk 0:00:16.4]} 37. Rxb2
{[%clk 0:01:37]} 37... Rxb2 {[%clk 0:00:16.8]} 38. Bd4+ {[%clk 0:01:38.2]} 1-0